Cogmind - Beta 13 @@@ ROGUE MODE // 2024.05.07 @ 00:41:23 Player: KTG-V3 Result: Establishing 0b11! Performance ------------- Evolutions (9) 4500 Regions Visited (29) 5800 Robots Destroyed (381) 1905 Value Destroyed (11559) 11559 Prototype IDs (289) 5780 Alien Tech Used (1) 200 Bonus (33246) 33246 TOTAL SCORE: 62990 Bonus ------- High Alert Combat Kills 209 Follower Combat Kills 2605 Network Hubs Disabled 400 Aligned with FarCom 300 Met Data Miner 300 Met Zhirov 300 Met Warlord at Base 500 MAIN.C Attacked Warlord 500 Warlord Defense Kills 1920 Built Enhanced Grunts 300 Met Warlord at Research 2000 Destroyed MAIN.C Guards 500 Met MAIN.C 5000 Destroyed MAIN.C Shell 5000 Destroyed MAIN.C 10000 Met Warlord at Command 2000 Win 3000 Friendly Fire -1588 Cogmind --------- Core Integrity 619/1600 Matter 300/300 Energy 1293/1300 System Corruption 0% Temperature Cool (14) Movement Hovering (36) Location 0b11 Command Parts ------- > --- POWER (2) -------- Vortex Chain Reactor > --- PROPULSION (8) --- Improved Antigrav System Improved Antigrav System Improved Antigrav System Improved Antigrav System Combat Antigrav System Combat Antigrav System Cooled Linear Gravjet Combat Linear Gravjet > --- UTILITY (11) ----- Advanced Heat Sink Large Storage Unit Experimental Energy Well Experimental Melee Analysis Suite Experimental Core Analyzer Experimental Transmission Jammer Advanced Reaction Control System Centrium Light Armor Plating Advanced Hacking Suite > --- WEAPON (4) ------- Plasma Lance Plasma Lance Plasma Lance > --- INVENTORY (15) --- Micro Antimatter Reactor Micro Antimatter Reactor Antigrav System Femtoactuators Experimental Utility Shielding Experimental Force Field Experimental System Purifier Transdimensional Reconstructor Linear Accelerator Linear Accelerator Vortex Lance (1) Peak State ------------ > --- POWER ------------ Vortex Chain Reactor > --- PROPULSION ------- Combat Linear Gravjet Combat Linear Gravjet Combat Linear Gravjet Combat Linear Gravjet Combat Linear Gravjet Combat Linear Gravjet Combat Linear Gravjet Combat Linear Gravjet > --- UTILITY ---------- Large Storage Unit Experimental Melee Analysis Suite Experimental Melee Analysis Suite Experimental Core Analyzer Femtoactuators Advanced Actuator Array Advanced Phase Shifter Experimental Utility Shielding Advanced Powered Armor Advanced Hacking Suite Ghost Barrier > --- WEAPON ----------- Force Lance Plasma Lance Plasma Lance Enhanced Force Lance > --- INVENTORY -------- Micro Antimatter Reactor Micro Antimatter Reactor Antigrav System Improved Antigrav System Improved Antigrav System Experimental Energy Well Experimental Transmission Jammer Advanced Reaction Control System Improved Utility Shielding Improved Utility Shielding Experimental Utility Shielding Transdimensional Reconstructor Vortex Lance Vortex Lance [Rating: 215] Favorites ----------- Power Micro Fission Core Engine Ion Engine Power Core Micro Fission Core Reactor Micro Antimatter Reactor Propulsion Combat Linear Gravjet Treads Light Treads Leg Potential Leg Hover Unit Combat Linear Gravjet Flight Unit Improved Flight Unit Utility Improved Hacking Suite Device Seismic Detector Storage Large Storage Unit Processor Advanced Visual Processing Unit Hackware Improved Hacking Suite Protection Hardened Light Armor Plating Weapon Improved Light Cannon Energy Gun Heavy Particle Gun Energy Cannon Improved EM Pulse Cannon Ballistic Gun Enhanced Autogun Ballistic Cannon Improved Light Cannon Launcher Mini Smartbomb Launcher Special Weapon Remote Datajack Impact Weapon Great Maul Slashing Weapon Power Sword Piercing Weapon Lance Build | -11 -10 -10 -10 -9 -8 -7 -7 -7 -7 -6 -6 -6 -6 -6 -6 -5 -5 -5 -5 -4 -4 -4 -4 -4 -3 -3 -2 -1 -1 ------- Run | Yrd Mat Min Exi Min Mat Fac Low Low Dat Pro Fac Ext Cet Arc Hub Fac Upp Upp Zhi Pro Fac Upp Upp War Pro Res Res Acc Com Slots Evolved 18 | . . . . . 4 2 . . . . 2 . . . . 2 . . . . 2 . . . . 2 2 2 . Power 1 | . . . . . . . . . . . . . . . . . . . . . 1 . . . . . . . . Propulsion 6 | . . . . . 1 1 . . . . . . . . . 1 . . . . 1 . . . . 1 . 1 . Utility 9 | . . . . . 3 1 . . . . 2 . . . . 1 . . . . . . . . . 1 1 . . Weapon 2 | . . . . . . . . . . . . . . . . . . . . . . . . . . . 1 1 . Parts Attached 679 | 7 20 . 10 10 77 45 18 12 2 12 46 32 6 12 13 92 4 7 11 3 39 17 10 21 4 49 38 4 58 Power 37 | 1 3 . . 1 4 1 . . . . 1 2 1 2 . 3 . . 2 . 5 . . 2 . 3 . . 6 Engine 11 | 1 3 . . 1 3 . . . . . . 2 . 1 . . . . . . . . . . . . . . . Core 13 | . . . . . 1 1 . . . . 1 . . . . 3 . . 1 . 5 . . . . 1 . . . Reactor 13 | . . . . . . . . . . . . . 1 1 . . . . 1 . . . . 2 . 2 . . 6 Propulsion 115 | 2 2 . 4 1 22 9 . . . 1 4 5 2 . . 22 . . 2 . 7 . . 1 . 10 4 2 15 Treads 33 | 2 2 . 2 1 17 . . . . . . 4 2 . . 2 . . 1 . . . . . . . . . . Leg 2 | . . . 2 . . . . . . . . . . . . . . . . . . . . . . . . . . Wheel . | . . . . . . . . . . . . . . . . . . . . . . . . . . . . . . Hover 79 | . . . . . 4 9 . . . 1 4 1 . . . 20 . . 1 . 7 . . 1 . 10 4 2 15 Flight 1 | . . . . . 1 . . . . . . . . . . . . . . . . . . . . . . . . Utility 332 | 2 9 . 3 1 18 19 12 3 1 6 21 15 1 7 4 47 4 1 6 3 25 14 10 18 1 29 28 1 23 Device 167 | 1 3 . . . 10 4 6 2 . 3 9 9 . 3 . 23 3 1 3 2 8 9 10 11 . 18 19 . 10 Storage 12 | 1 2 . 2 . . . . . . . . 1 . . . 1 . . 1 . 1 . . . . . . . 3 Processor 22 | . 2 . . . 3 3 . . . . 1 . . . . . . . . . 1 1 . 3 . 1 4 . 3 Hackware 27 | . . . . . 1 1 . . . . 4 . . 2 1 6 . . . . 7 . . 1 . 2 . 1 1 Protection 104 | . 2 . 1 1 4 11 6 1 1 3 7 5 1 2 3 17 1 . 2 1 8 4 . 3 1 8 5 . 6 Artifact . | . . . . . . . . . . . . . . . . . . . . . . . . . . . . . . Weapon 195 | 2 6 . 3 7 33 16 6 9 1 5 20 10 2 3 9 20 . 6 1 . 2 3 . . 3 7 6 1 14 Energy Gun 6 | . 1 . . . 3 . . . . . . . . 1 1 . . . . . . . . . . . . . . Energy Cannon 6 | . . . 1 . 1 . . . . . . 1 . 1 . . . . . . . . . . . 1 . . 1 Ballistic Gun 33 | 2 1 . . 2 18 . . . . . . 2 2 1 5 . . . . . . . . . . . . . . Ballistic Cannon 48 | . 3 . 2 4 1 5 1 4 . 2 9 3 . . 1 6 . 2 . . 1 1 . . 1 . . . 2 Launcher 25 | . . . . 1 2 2 1 1 1 2 2 1 . . . 3 . 2 1 . 1 1 . . 1 1 1 . 1 Special Weapon 4 | . 1 . . . 2 . . . . . 1 . . . . . . . . . . . . . . . . . . Impact Weapon 11 | . . . . . 6 3 . 1 . . . 1 . . . . . . . . . . . . . . . . . Slashing Weapon 17 | . . . . . . . 1 . . . 3 2 . . 2 9 . . . . . . . . . . . . . Piercing Weapon 45 | . . . . . . 6 3 3 . 1 5 . . . . 2 . 2 . . . 1 . . 1 5 5 1 10 Special Melee Weapon . | . . . . . . . . . . . . . . . . . . . . . . . . . . . . . . Unidentified Prototypes 37 | . . . 2 . 6 2 . . . . 1 1 3 2 . 2 . . 4 . 1 . . 8 . 1 4 . . Corrupted Parts 2 | . . . . . . . . . . . . . 1 1 . . . . . . . . . . . . . . . System Corruption 6 | . . . . . . . . . . . . . 3 3 . . . . . . . . . . . . . . . Parts Lost 48 | . 2 . . . 6 . 1 . . 1 . . . . 3 . . . . . . . . 1 1 1 1 . 31 Power 3 | . . . . . . . . . . . . . . . . . . . . . . . . . 1 . . . 2 Propulsion 16 | . . . . . 2 . . . . . . . . . . . . . . . . . . . . . . . 14 Utility 21 | . . . . . 3 . 1 . . 1 . . . . 3 . . . . . . . . 1 . 1 . . 11 Weapon 8 | . 2 . . . 1 . . . . . . . . . . . . . . . . . . . . . 1 . 4 Highest Loss Streak 19 | . 1 . . . 2 . 1 . . 1 . . . . 2 . . . . . . . . 1 1 1 1 . 19 To Critical Strikes . | . . . . . . . . . . . . . . . . . . . . . . . . . . . . . . Average Slot Usage (%) 91 | . 99 100 98 100 92 92 91 91 92 84 88 84 87 85 85 90 93 88 84 93 92 99 98 98 98 95 94 93 69 Engine 3 | . 14 14 14 14 8 . . . . . . 4 1 . . . . . . . . . . . . . . . . Core 2 | . . . . . . 7 7 7 7 7 6 1 . . . 5 5 5 3 5 9 10 10 6 . 3 . . . Reactor 1 | . . . . . . . . . . . . . 4 5 6 . . . 1 . . . . 3 9 4 8 8 7 Treads 9 | . 27 28 27 28 25 . . . . . . 9 13 13 13 . . . . . . . . . . . . . . Hover 16 | . . . . . 1 29 30 30 30 30 21 10 1 . . 23 23 23 22 23 26 31 31 31 31 32 30 31 23 Device 5 | . 8 . . . 7 5 10 6 7 5 5 5 13 9 . 4 5 5 4 4 3 6 9 5 . 5 12 7 7 Storage 7 | . 14 14 13 14 9 7 7 7 7 7 6 6 6 6 6 5 5 5 5 5 5 5 5 5 5 4 4 4 7 Processor 3 | . . 14 11 . 1 12 7 7 7 7 4 . . . . . . . . . . 4 5 7 10 3 1 4 4 Hackware 16 | . . . . . 7 12 15 15 15 15 28 32 20 20 29 31 35 35 35 35 32 28 26 26 26 19 17 16 6 Protection 6 | . 4 . 2 14 12 4 4 7 7 8 6 2 13 14 15 7 4 . 1 4 3 . . . 5 8 7 8 2 Ballistic Gun 3 | . 15 . . . 13 . . . . . . 2 . 10 7 . . . . . . . . . . . . . . Ballistic Cannon 4 | . 8 28 26 27 . . . 2 . . . 3 . . . 1 . . . . . . . . . . . . 1 Piercing Weapon 3 | . . . . . . 6 6 4 7 . 3 . . . . 1 5 4 5 5 5 4 5 5 4 8 8 14 8 Naked Turns . | . . . . . . . . . . . . . . . . . . . . . . . . . . . . . . Heaviest Build 135 | 15 38 33 38 38 64 43 40 41 45 38 49 129 130 135 134 57 44 52 47 44 74 74 74 77 85 100 102 101 107 Greatest Support 160 | 40 40 40 40 40 64 40 32 32 32 32 36 50 160 160 160 80 47 47 47 47 84 84 84 89 89 103 98 111 117 Greatest Overweight (x) 3 | . . . . . 1 1 1 1 1 1 1 3 2 . . 3 . 1 1 . 1 . . . 1 1 1 . 2 Average Overweight (x) . | . . . . . . . . . . . . 1 . . . . . . . . . . . . . . . . . Largest Inventory Capacity 25 | 8 15 15 15 15 15 15 15 15 15 15 15 25 25 25 25 25 15 15 15 15 20 20 20 20 20 20 20 20 20 Average Capacity 16 | 7 13 15 14 15 15 15 15 15 15 15 15 22 25 25 25 15 15 15 15 15 17 20 20 20 20 20 20 20 15 Most Carried 25 | 6 15 15 15 15 15 15 15 15 14 15 15 25 25 25 25 24 15 15 15 15 20 20 20 20 20 20 20 20 20 Average Carried 15 | 3 13 14 14 14 14 14 14 14 14 14 14 20 24 24 24 14 14 14 14 14 16 19 19 19 19 18 19 19 8 Final Capacity 25 | 8 15 15 15 15 15 15 15 15 15 15 15 25 25 25 25 15 15 15 15 15 20 20 20 20 20 20 20 20 15 Final Carried 25 | 6 15 15 15 14 11 14 15 14 14 13 15 25 25 25 24 15 15 15 15 15 20 19 20 19 20 20 20 20 11 Class Distribution -------------------- 25% | Hacker-Mutant 20% | Mutant 20% | Wizard-Mutant 18% | Scavenger-Mutant 8% | Hacker-Gladiator 3% | Hacker-Scout Dominant Class ---------------- Mutant | -10/Materials Mutant | -10/Mines Mutant | -10/Exiles Mutant | -9/Mines Scavenger-Mutant | -8/Materials Hacker-Scout | -7/Factory Hacker-Mutant | -7/Lower Caves Hacker-Mutant | -7/Lower Caves Hacker-Mutant | -7/Data Miner Hacker-Mutant | -6/Proximity Caves Hacker-Mutant | -6/Factory Hacker-Mutant | -6/Extension Hacker-Mutant | -6/Cetus Hacker-Mutant | -6/Archives Hacker-Mutant | -6/Hub_04(d) Wizard-Mutant | -5/Factory Wizard-Mutant | -5/Upper Caves Wizard-Mutant | -5/Upper Caves Wizard-Mutant | -5/Zhirov Wizard-Mutant | -4/Proximity Caves Wizard-Mutant | -4/Factory Wizard-Mutant | -4/Upper Caves Wizard-Mutant | -4/Upper Caves Wizard-Mutant | -4/Warlord Wizard-Mutant | -3/Proximity Caves Hacker-Gladiator | -3/Research Hacker-Gladiator | -2/Research Hacker-Gladiator | -1/Access Scavenger-Mutant | -1/Command Resources | -11 -10 -10 -10 -9 -8 -7 -7 -7 -7 -6 -6 -6 -6 -6 -6 -5 -5 -5 -5 -4 -4 -4 -4 -4 -3 -3 -2 -1 -1 ----------- Run | Yrd Mat Min Exi Min Mat Fac Low Low Dat Pro Fac Ext Cet Arc Hub Fac Upp Upp Zhi Pro Fac Upp Upp War Pro Res Res Acc Com Matter Collected 14010 | 330 643 216 . 411 2421 563 216 271 . 206 902 819 128 518 243 1575 75 326 120 238 544 611 220 480 162 489 641 30 612 Remotely 321 | . . . . . . . . . . . . . 82 239 . . . . . . . . . . . . . . . Salvage Created 18794 | 148 884 198 . 484 2737 913 139 154 . 119 712 298 . 517 209 2067 113 202 299 211 836 439 307 538 276 953 609 424 4008 Parts 869 | 10 58 8 . 20 141 70 9 2 . 2 44 6 . 37 15 122 1 1 5 17 37 12 15 14 6 56 19 23 119 Haulers Intercepted 20 | . 2 . . . 5 1 . . . . 1 . . . . 4 . . . . 2 . . . . 2 2 1 . Recyclers Shooed 17 | . 2 . . 1 6 . . . . . . . . . . 7 . . . . . . . . . . 1 . . Parts Field Recycled . | . . . . . . . . . . . . . . . . . . . . . . . . . . . . . . Retrieved Matter . | . . . . . . . . . . . . . . . . . . . . . . . . . . . . . . Parts Self-Destructed 82 | . . . . . . . 8 5 . 2 . . . . . . 4 20 3 14 . 11 11 . 4 . . . . Prevented 5 | . . . . . . . . . . . . . . . . . . 2 . 3 . . . . . . . . . Kills | -11 -10 -10 -10 -9 -8 -7 -7 -7 -7 -6 -6 -6 -6 -6 -6 -5 -5 -5 -5 -4 -4 -4 -4 -4 -3 -3 -2 -1 -1 ------- Run | Yrd Mat Min Exi Min Mat Fac Low Low Dat Pro Fac Ext Cet Arc Hub Fac Upp Upp Zhi Pro Fac Upp Upp War Pro Res Res Acc Com Combat Hostiles Destroyed 202 | . 19 7 . 7 35 4 3 4 . 4 7 5 . 1 3 12 1 7 . 10 5 11 8 17 5 12 4 3 8 Melee 29 | . . . . . . 1 1 . . . 2 . . . . . . . . . . 1 . . . 12 1 3 8 Guns 52 | . 19 . . . 30 . . . . . . . . 1 2 . . . . . . . . . . . . . . Cannons 43 | . . 7 . 4 3 3 1 2 . 1 2 3 . . 1 10 . 3 . . . 1 . . 2 . . . . AOE 78 | . . . . 3 2 . 1 2 . 3 3 2 . . . 2 1 4 . 10 5 9 8 17 3 . 3 . . Classes Destroyed 23 | 2 7 1 . 1 3 1 1 . . . . . . . 2 . . . . 1 . . 1 3 . . . . . Worker 33 | . 1 . . 1 8 3 . . . . 5 . . . . 6 . . . . 1 . . . . 2 2 1 3 Builder 20 | . 1 . . . 2 8 . . . . 1 . . . 2 6 . . . . . . . . . . . . . Tunneler 20 | 4 . . . 3 2 4 . . . . 1 . . . . 5 . . . . 1 . . . . . . . . Hauler 20 | . 2 . . . 5 1 . . . . 1 . . . . 4 . . . . 2 . . . . 2 2 1 . Recycler 38 | 1 1 2 . 5 9 5 . . . . 2 1 . . . 6 . . . . 2 . . . . 1 2 . 1 Minesweeper 2 | . . . . . . . 1 . . . . . . . . . . . . 1 . . . . . . . . . Mechanic 1 | . . . . . . . . . . . . . . . . . . . . . . . . 1 . . . . . Operator 19 | . 1 . . . 3 . . . . . . 1 . 9 . 1 . . . . 2 1 . . . . 1 . . Drone 2 | . . . . . . . . . . . . . . . . . . . . 2 . . . . . . . . . Watcher 27 | . 3 . . . 5 4 . . . . 1 . . . 2 5 . . . . 3 . . . . 2 . 2 . Swarmer 55 | . 6 3 . 4 8 1 2 . . . 3 2 . . . . 1 . . 5 2 5 8 5 . . . . . Cutter 8 | . . . . . . . . . . . . . . . 1 . . . . . . . . . . 7 . . . Grunt 73 | . 13 . . 1 14 . 1 . . 4 . 3 . . 1 2 . 6 . 3 3 3 . 8 5 . 4 1 1 Brawler 3 | . . . . . . . . . . . . . . . 1 . . . . . . 1 . 1 . . . . . Duelist 1 | . . . . . . . . . . . . . . . . . . . . . . . . 1 . . . . . Protector 1 | . . . . . . . . . . . . . . . . . . . . . . . . 1 . . . . . Sentry 15 | . . . . 2 8 . . 1 . . . . . 1 . . . . . . . . . . . 1 . 1 1 Specialist 3 | . . . . . 2 . . . . . . . . . . . . . . . . . . 1 . . . . . Hunter 7 | . . . . . 2 . . 2 . . . . . . . . . . . . . 2 . . . . . . 1 Programmer 26 | . . . . . . 3 . 1 . . 4 . . . . 10 . 1 . . . . . . . 4 . 1 2 Heavy 1 | . . . . . 1 . . . . . . . . . . . . . . . . . . . . . . . . M Guard 1 | . . . . . . . . . . . . . . . . . . . . . . . . . . . . . 1 Enhanced Grunt 1 | . . . . . . . . . . . . . . 1 . . . . . . . . . . . . . . . Decomposer 3 | . . . . . . . 2 . . . . . . . . . . . . . . . 1 . . . . . . Packrat 1 | . . . . . . . . . . . . . . . . . . . . . . 1 . . . . . . . Samaritan 2 | . . . . . . . . . . . . . . . . . . . . . . . 1 . 1 . . . . Assembled 4 | . . 4 . . . . . . . . . . . . . . . . . . . . . . . . . . . Thug 2 | . . 1 . . . . . . . . . . . . . . . . . . . 1 . . . . . . . Best Kill Streak 10 | 5 4 3 . 4 10 5 2 3 . 4 4 2 . 3 2 6 1 4 . 5 3 6 4 10 5 4 4 1 2 Combat Bots Only 9 | . 4 3 . 4 7 1 1 3 . 4 3 2 . 1 1 2 1 4 . 5 3 6 4 9 5 4 4 1 2 Max Kills in Single Turn 5 | 1 1 2 . 3 2 1 2 2 . 2 4 2 . 1 1 2 1 1 . 2 2 4 4 5 3 1 2 1 1 Gunslinging . | . . . . . . . . . . . . . . . . . . . . . . . . . . . . . . Exploded 5 | . . . . 3 2 . 1 2 . 2 3 2 . . . 1 1 1 . 2 2 4 4 5 3 . 2 . . Melee 1 | . . . . . . 1 1 . . . 1 . . . . . . . . . . 1 . . . 1 1 1 1 Uniques/NPCs Destroyed 2 | . . . . . . . . . . . . . . . . . . . . . . . . . . . . . 2 MAIN.C Shell (-1/Command) MAIN.C (-1/Command) Combat | -11 -10 -10 -10 -9 -8 -7 -7 -7 -7 -6 -6 -6 -6 -6 -6 -5 -5 -5 -5 -4 -4 -4 -4 -4 -3 -3 -2 -1 -1 -------- Run | Yrd Mat Min Exi Min Mat Fac Low Low Dat Pro Fac Ext Cet Arc Hub Fac Upp Upp Zhi Pro Fac Upp Upp War Pro Res Res Acc Com Hostile Shots Fired 1016 | . 94 18 . 16 227 38 3 14 . 19 37 43 6 . 52 48 1 6 . 10 2 23 2 27 44 43 4 21 218 Missed 316 | . 23 5 . 6 68 12 . 5 . 10 10 14 3 . 4 13 . 2 . 1 1 10 1 12 21 19 1 7 68 Damage Taken 16546 | . 712 229 . 139 2356 369 45 150 . 254 341 478 135 . 1955 832 12 78 . 138 16 211 105 402 482 589 289 318 5911 Core 1892 | . 96 . . 23 133 55 29 . . 51 80 88 . . 186 68 . . . . . 11 . 64 27 . . 18 963 Absorbed by Shields 146 | . . . . . 146 . . . . . . . . . . . . . . . . . . . . . . . . Reduced by Siege Mode 63 | . . . . . . . . . . . . . . . 40 23 . . . . . . . . . . . . . Redirected to Shielding 514 | . . . . . . . . 9 . 49 . . . . . . . . . . . . . . . 43 . 48 365 Regen/Repaired (Parts) 2969 | . 108 . . . 154 172 . . . . 339 . . . . 1346 . . . . 44 . . 42 . 666 . 98 . Core Remaining (%) 78 | 100 . . . 52 75 . . . . 80 . . . . 58 . . . . 93 . . . . 91 100 100 . 38 Volleys Fired 748 | 10 93 27 . 26 219 13 2 17 . 7 16 44 4 80 51 39 1 15 . 8 12 19 4 11 11 1 9 . 9 Largest 2 | 2 2 2 . 2 2 1 1 1 . 1 1 2 1 2 2 1 1 1 . 1 1 1 1 1 1 1 1 . 2 Hottest 132 | 40 78 78 . 78 83 60 60 60 . 60 60 66 69 68 115 80 80 80 . 80 80 80 80 80 80 80 80 . 132 Shots Fired 1145 | 20 182 54 . 51 421 13 2 17 . 7 17 52 5 90 71 40 1 15 . 8 12 19 4 11 11 1 9 . 12 Gun 709 | 20 176 . . . 368 . . . . . . 7 . 90 48 . . . . . . . . . . . . . . Cannon 345 | . 2 54 . 50 49 13 1 16 . 4 16 44 5 . 23 35 . 7 . . 7 2 . . 9 . . . 8 Launcher 87 | . . . . 1 4 . 1 1 . 3 1 1 . . . 5 1 8 . 8 5 17 4 11 2 1 9 . 4 Special 4 | . 4 . . . . . . . . . . . . . . . . . . . . . . . . . . . . Kinetic 982 | 20 166 54 . 50 375 13 1 16 . 4 16 51 . 90 61 35 . 7 . . 7 2 . . 9 . . . 5 Thermal 68 | . 16 . . . 42 . . . . . . . . . 10 . . . . . . . . . . . . . . Explosive 83 | . . . . 1 4 . 1 1 . 3 1 1 . . . 5 1 8 . 8 5 17 4 11 2 1 9 . . Electromagnetic 12 | . . . . . . . . . . . . . 5 . . . . . . . . . . . . . . . 7 Robot Hit Streak 18 | 11 12 4 . 13 18 8 11 5 . 9 3 6 2 18 7 15 6 4 . 6 . 10 4 . 3 . . . 1 Robot Miss Streak 9 | 1 9 4 . 1 5 2 2 3 . 2 2 3 2 3 3 1 . 5 . . . 1 . . 6 . . . 2 Penetration Max 1 | . . . . . . . . . . . . . . 1 1 . . . . . . . . . . . . . . Secondary Targets 4 | . 1 . . . 3 . . . . . . . . . . . . . . . . . . . . . . . . Max Gunslinging Chain 1 | . 1 . . . 1 . . . . . . . . . . . . . . . . . . . . . . . . Shots Hit Robots 1094 | 14 108 21 . 37 279 40 6 13 . 4 26 23 2 64 36 77 4 6 4 3 21 12 7 1 8 47 11 22 198 Core Hits 650 | 6 45 12 . 16 108 17 5 10 . 17 17 11 . 27 14 40 3 20 4 17 26 26 13 64 16 26 19 7 64 Critical Kills 5 | . 1 . . . . . . . . . . 1 . 3 . . . . . . . . . . . . . . . Critical Parts Destroyed 17 | . 2 . . . 1 2 . . . . . 2 . 7 3 . . . . . . . . . . . . . . Critical Strikes 88 | . 5 1 . 2 4 6 . . . . 1 5 . 13 3 7 1 . 1 . 5 1 . . 2 6 3 1 21 Burn 3 | . 2 . . . 1 . . . . . . . . . . . . . . . . . . . . . . . . Destroy 23 | . 3 . . . 1 . . . . . . 3 . 13 3 . . . . . . . . . . . . . . Blast 14 | . . 1 . 2 2 1 . . . . 1 2 . . . 4 . . . . . . . . 1 . . . . Smash 2 | . . . . . . 2 . . . . . . . . . . . . . . . . . . . . . . . Sever 2 | . . . . . . . . . . . . . . . . 2 . . . . . . . . . . . . . Impale 41 | . . . . . . 3 . . . . . . . . . 1 1 . 1 . 5 1 . . 1 6 3 1 18 Sunder 3 | . . . . . . . . . . . . . . . . . . . . . . . . . . . . . 3 Melee Attacks 852 | . . . . . 10 98 6 10 . . 47 22 . . 5 99 3 . 4 2 56 7 7 5 1 140 31 53 246 Impact 45 | . . . . . 10 14 . . . . . 21 . . . . . . . . . . . . . . . . . Slashing 109 | . . . . . . . . . . . 13 1 . . 5 90 . . . . . . . . . . . . . Piercing 640 | . . . . . . 84 6 10 . . 34 . . . . 9 3 . 4 2 56 7 7 5 1 140 31 53 188 Entropic 58 | . . . . . . . . . . . . . . . . . . . . . . . . . . . . . 58 Sneak Attacks 112 | . . . . . 2 24 2 . . . 11 . . . . 29 . . . 1 8 2 3 1 1 7 7 8 6 Combat Hostiles 6 | . . . . . . 1 . . . . 1 . . . . . . . . . . . . . . . . 2 2 Follow-up Attacks 65 | . . . . . . . . . . . . . . . . 4 . . . . . . . . . 7 . 6 48 Damage Inflicted 58067 | 183 1403 579 . 1014 5280 2285 301 907 . 544 1669 1466 154 1497 723 5532 288 1541 276 1268 1876 2121 1269 3687 845 2109 2038 1535 15677 Guns 7780 | 183 1380 . . . 4128 . . . . . . 36 . 1497 556 . . . . . . . . . . . . . . Cannons 7115 | . 23 579 . 788 725 338 57 410 . 87 249 1216 154 . 144 1564 . 362 . . . 132 . . 269 . . . 18 Explosions 13576 | . . . . 226 234 . 54 307 . 457 294 214 . . . 712 71 1179 . 1170 743 1667 791 3622 496 93 1246 . . Melee 29573 | . . . . . 193 1947 190 190 . . 1126 . . . . 3256 217 . 276 98 1133 322 478 65 80 2016 792 1535 15659 Ramming 23 | . . . . . . . . . . . . . . . 23 . . . . . . . . . . . . . . Kinetic 13993 | 183 1303 579 . 788 4394 338 57 410 . 87 249 1252 . 1497 529 1564 . 362 . . . 132 . . 269 . . . . Thermal 730 | . 100 . . . 459 . . . . . . . . . 171 . . . . . . . . . . . . . . Explosive 13576 | . . . . 226 234 . 54 307 . 457 294 214 . . . 712 71 1179 . 1170 743 1667 791 3622 496 93 1246 . . Electromagnetic 172 | . . . . . . . . . . . . . 154 . . . . . . . . . . . . . . . 18 Impact 701 | . . . . . 193 508 . . . . . . . . . . . . . . . . . . . . . . . Slashing 3023 | . . . . . . . . . . . 524 . . . . 2499 . . . . . . . . . . . . . Piercing 20862 | . . . . . . 1439 190 190 . . 602 . . . . 757 217 . 276 98 1133 322 478 65 80 2016 792 1535 10672 Entropic 4987 | . . . . . . . . . . . . . . . . . . . . . . . . . . . . . 4987 Highest Corruption 23 | . . . . . 2 5 1 2 2 2 5 5 8 8 23 3 1 1 1 1 . . . . . 3 2 . 11 Average Corruption 3 | . . . . . 1 4 1 1 2 2 4 5 7 6 2 2 1 1 1 1 . . . . . 2 2 . 8 Corruption Purged 32 | . . . . . . 4 . . . . . . . 11 . 3 . . . . . . . . . 3 . . 11 Corruption Blocked 40 | . . . . . . . . . . . . . . . . . . . . . . . . . . . 4 36 . Effects 368 | . . . . . 52 35 4 11 . 4 37 62 16 13 7 44 2 1 3 2 . . . . . 19 9 . 47 Message Errors 79 | . . . . . 9 11 . 4 . 1 5 12 1 3 . 10 1 . 1 1 . . . . . 12 . . 8 Matter Fused 81 | . . . . . 12 5 . 3 . 1 14 13 2 4 . 11 . . 1 . . . . . . 1 2 . 12 Heat Flow Errors 50 | . . . . . 10 6 . 1 . . 5 7 1 1 1 6 . . . . . . . . . . 2 . 10 Energy Discharges 55 | . . . . . 9 2 1 1 . . 3 11 6 1 . 6 . . 1 . . . . . . 2 3 . 9 Parts Rejected 6 | . . . . . . . . . . . . 2 . 1 1 1 . . . . . . . . . . . . 1 Parts Fused 5 | . . . . . . . 1 . . . . 1 . . 1 2 . . . . . . . . . . . . . Data Loss (minor) 50 | . . . . . 6 6 2 2 . 2 7 4 3 1 . 7 1 . . 1 . . . . . 3 1 . 4 Data Loss (major) 18 | . . . . . 3 4 . . . . 2 3 1 1 . . . 1 . . . . . . . . 1 . 2 Misfires 12 | . . . . . 2 . . . . . 1 6 1 . . 1 . . . . . . . . . . . . 1 Alerts 7 | . . . . . 1 1 . . . . . 2 1 . 1 . . . . . . . . . . 1 . . . Misdirections 1 | . . . . . . . . . . . . . . . 1 . . . . . . . . . . . . . . Weapon Failures 4 | . . . . . . . . . . . . 1 . 1 2 . . . . . . . . . . . . . . Overload Shots . | . . . . . . . . . . . . . . . . . . . . . . . . . . . . . . Overflow Damage 4398 | . . 16 . 41 148 786 70 80 . . 148 23 . . 1 831 . 48 . 92 173 183 166 34 . 150 311 248 849 Projectiles 507 | . . 16 . 38 4 25 . 80 . . 14 23 . . 1 274 . 32 . . . . . . . . . . . Explosions 269 | . . . . 3 . . 12 . . . . . . . . 3 . 16 . 92 20 38 38 34 . . 13 . . Melee 3622 | . . . . . 144 761 58 . . . 134 . . . . 554 . . . . 153 145 128 . . 150 298 248 849 Knockbacks 39 | . . 8 . 4 3 4 . 1 . 1 1 2 . . . 10 . 2 . . . . . . 3 . . . . Impact 2 | . . . . . . 2 . . . . . . . . . . . . . . . . . . . . . . . Kinetic 36 | . . 8 . 4 3 2 . 1 . 1 1 2 . . . 9 . 2 . . . . . . 3 . . . . Secondary 1 | . . . . . . . . . . . . . . . . 1 . . . . . . . . . . . . . Self-Inflicted Damage 187 | . . . . 21 . . . 13 . 71 . . . . . . . . . . . . 64 . . . . . 18 Shots 9 | . . . . 1 . . . 1 . 4 . . . . . . . . . . . . 1 . . . . . 2 Rammed 1 | . . . . . . . . . . . . . . . 1 . . . . . . . . . . . . . . Targets Rammed 1 | . . . . . . . . . . . . . . . 1 . . . . . . . . . . . . . . Kicked . | . . . . . . . . . . . . . . . . . . . . . . . . . . . . . . Crushed . | . . . . . . . . . . . . . . . . . . . . . . . . . . . . . . Highest Temperature 285 | . 228 126 . 225 285 264 24 132 . 31 239 268 145 132 216 284 28 63 . 9 16 32 34 30 40 36 209 166 242 Average Temperature 36 | . 96 39 . 50 80 78 14 33 . 15 67 63 74 74 77 70 18 24 . 6 2 3 2 4 19 5 24 36 38 Received Heat Transfer 1618 | . 267 . . 9 666 90 . . . 42 9 54 . . 72 45 . 30 . . . 30 . . 121 9 18 21 135 Effects 6 | . . . . . 3 . . . . . 1 1 . . . 1 . . . . . . . . . . . . . Energy Bleed 3 | . . . . . . . . . . . 1 1 . . . 1 . . . . . . . . . . . . . Interference 3 | . . . . . 3 . . . . . . . . . . . . . . . . . . . . . . . . Siege Activations 9 | . . . . . . . . . . . . . . 3 4 2 . . . . . . . . . . . . . Total Turns 204 | . . . . . . . . . . . . . . 89 26 89 . . . . . . . . . . . . . Longest Duration 69 | . . . . . . . . . . . . . . 54 10 69 . . . . . . . . . . . . . Robots Corrupted . | . . . . . . . . . . . . . . . . . . . . . . . . . . . . . . Combat Hostiles . | . . . . . . . . . . . . . . . . . . . . . . . . . . . . . . Parts Fried 7 | . . . . . 1 5 . . . . . . . . . . . . . . . . . . . . . . 1 Impact Corruptions 16 | . . . . . 4 12 . . . . . . . . . . . . . . . . . . . . . . . Robots Melted . | . . . . . . . . . . . . . . . . . . . . . . . . . . . . . . Combat Hostiles . | . . . . . . . . . . . . . . . . . . . . . . . . . . . . . . Parts Melted . | . . . . . . . . . . . . . . . . . . . . . . . . . . . . . . Heat Transferred 1628 | . 444 . . . 962 . . . . . . . . . 222 . . . . . . . . . . . . . . Parts Sabotaged . | . . . . . . . . . . . . . . . . . . . . . . . . . . . . . . Parts Stolen . | . . . . . . . . . . . . . . . . . . . . . . . . . . . . . . Parts Stripped . | . . . . . . . . . . . . . . . . . . . . . . . . . . . . . . Power Chain Reactions 2 | . . . . . . . . . . . . . . . . . . . . . . . . . . . . . 2 Alert | -11 -10 -10 -10 -9 -8 -7 -7 -7 -7 -6 -6 -6 -6 -6 -6 -5 -5 -5 -5 -4 -4 -4 -4 -4 -3 -3 -2 -1 -1 ------- Run | Yrd Mat Min Exi Min Mat Fac Low Low Dat Pro Fac Ext Cet Arc Hub Fac Upp Upp Zhi Pro Fac Upp Upp War Pro Res Res Acc Com Peak Influence 788 | 25 339 170 . 100 565 285 . . . . 728 329 180 325 788 530 . . . . 502 . . . . 282 441 424 251 Initial 585 | . 16 15 . . . 191 . . . . 585 61 113 72 19 282 . . . . 445 . . . . 67 158 117 136 Average 186 | 7 156 28 . 32 242 124 . . . . 308 181 170 200 519 223 . . . . 157 . . . . 58 335 263 152 Maximum Alert Level 3 | . 1 . . . 2 1 . . . . 3 1 . 1 3 2 . . . . 2 . . . . 1 2 2 1 Low Security (%) 59 | 100 65 100 . 100 43 86 . . . . 47 46 100 50 15 28 . . . . 51 . . . . 99 11 19 76 Level 1 29 | . 34 . . . 28 13 . . . . 11 53 . 49 9 68 . . . . 46 . . . . . 58 76 23 Level 2 9 | . . . . . 28 . . . . . 35 . . . 42 3 . . . . 1 . . . . . 30 4 . Level 3 1 | . . . . . . . . . . . 5 . . . 31 . . . . . . . . . . . . . . Level 4 . | . . . . . . . . . . . . . . . . . . . . . . . . . . . . . . Level 5 . | . . . . . . . . . . . . . . . . . . . . . . . . . . . . . . High Security . | . . . . . . . . . . . . . . . . . . . . . . . . . . . . . . Max Security . | . . . . . . . . . . . . . . . . . . . . . . . . . . . . . . Squads Dispatched 82 | . 6 . . . 8 12 . . . 1 13 2 . . 6 12 . . . . 9 . . . . 10 1 1 1 Investigation 29 | . 4 . . . 2 6 . . . . 6 1 . . 2 4 . . . . 3 . . . . 1 . . . Extermination 24 | . . . . . . 4 . . . . 4 . . . 1 6 . . . . 2 . . . . 5 . 1 1 Reinforcement 25 | . 2 . . . 5 2 . . . . 2 1 . . 2 2 . . . . 4 . . . . 4 1 . . Assault 3 | . . . . . 1 . . . . 1 . . . . 1 . . . . . . . . . . . . . . Garrison 1 | . . . . . . . . . . . 1 . . . . . . . . . . . . . . . . . . Intercept . | . . . . . . . . . . . . . . . . . . . . . . . . . . . . . . Searches Triggered 2 | . . . . . . . . . . . 2 . . . . . . . . . . . . . . . . . . Construction Impeded 3 | . . . . . . 1 . . . . 1 . . . . 1 . . . . . . . . . . . . . Haulers Reinforced 2 | . . . . . . . . . . . . . . . . 1 . . . . . . . . . . 1 . . Active Scanning Responses . | . . . . . . . . . . . . . . . . . . . . . . . . . . . . . . Cargo Convoy Interrupts . | . . . . . . . . . . . . . . . . . . . . . . . . . . . . . . Stealth | -11 -10 -10 -10 -9 -8 -7 -7 -7 -7 -6 -6 -6 -6 -6 -6 -5 -5 -5 -5 -4 -4 -4 -4 -4 -3 -3 -2 -1 -1 --------- Run | Yrd Mat Min Exi Min Mat Fac Low Low Dat Pro Fac Ext Cet Arc Hub Fac Upp Upp Zhi Pro Fac Upp Upp War Pro Res Res Acc Com Distress Signals 58 | . 2 1 . . 6 . . . . . 1 3 1 . 3 1 . . . . 2 . . 1 . 2 13 2 20 Communications Jammed 1 | . . . . . . . . . . . . . . . . . . . . . . . . . . 1 . . . Distress Signals 1 | . . . . . . . . . . . . . . . . . . . . . . . . . . 1 . . . Times Spotted 482 | . 28 12 . 4 56 27 3 9 . 28 22 22 5 21 21 35 1 11 . 9 23 8 5 37 11 26 6 10 42 Peak Tracking Total 14 | . 6 3 . 4 4 4 2 4 . 13 4 4 5 1 6 7 1 4 . 5 4 4 3 14 6 5 7 4 11 Tactical Retreats 42 | . . 2 . . 2 6 1 4 . 3 4 . . . 1 5 . . . 1 2 1 . . . 2 3 4 1 Traps | -11 -10 -10 -10 -9 -8 -7 -7 -7 -7 -6 -6 -6 -6 -6 -6 -5 -5 -5 -5 -4 -4 -4 -4 -4 -3 -3 -2 -1 -1 ------- Run | Yrd Mat Min Exi Min Mat Fac Low Low Dat Pro Fac Ext Cet Arc Hub Fac Upp Upp Zhi Pro Fac Upp Upp War Pro Res Res Acc Com Traps Triggered 20 | . . . . . 3 4 . . . . . 1 . . 2 5 . . . . . . . . . 1 . . 4 Indirectly . | . . . . . . . . . . . . . . . . . . . . . . . . . . . . . . Trap Hack Attempts . | . . . . . . . . . . . . . . . . . . . . . . . . . . . . . . Triggered . | . . . . . . . . . . . . . . . . . . . . . . . . . . . . . . Disarmed . | . . . . . . . . . . . . . . . . . . . . . . . . . . . . . . Reprogrammed . | . . . . . . . . . . . . . . . . . . . . . . . . . . . . . . Reused 1 | . . . . 1 . . . . . . . . . . . . . . . . . . . . . . . . . Traps Extracted . | . . . . . . . . . . . . . . . . . . . . . . . . . . . . . . Installed 1 | . . . . 1 . . . . . . . . . . . . . . . . . . . . . . . . . Triggered 10 | . . . . 1 . . . . . . . . . . . . . 1 . 2 . . . 5 . . . 1 . Most Traps Carried 3 | . . . . 1 . . 3 3 3 3 3 3 3 3 3 3 . . . . . . . . . . . . . Machines | -11 -10 -10 -10 -9 -8 -7 -7 -7 -7 -6 -6 -6 -6 -6 -6 -5 -5 -5 -5 -4 -4 -4 -4 -4 -3 -3 -2 -1 -1 ---------- Run | Yrd Mat Min Exi Min Mat Fac Low Low Dat Pro Fac Ext Cet Arc Hub Fac Upp Upp Zhi Pro Fac Upp Upp War Pro Res Res Acc Com Machines Disabled 25 | . . . . . 3 1 1 . . . 1 6 . 6 2 1 . . . . 2 . . . . . . . 2 Max in Single Turn 2 | . . . . . 1 1 1 . . . 1 2 . 1 . . . . . . 1 . . . . . . . 1 Garrison Access 13 | . . . . . 1 2 . . . . 1 . . . 1 3 . . . . 1 . . . . 1 1 2 . Network Hub 2 | . . . . . . . . . . . . . . . 2 . . . . . . . . . . . . . . Energy Cycler 1 | . . . . . . . . . . . . 1 . . . . . . . . . . . . . . . . . Machines Repaired . | . . . . . . . . . . . . . . . . . . . . . . . . . . . . . . Machines Dismantled 2 | . . . . . 2 . . . . . . . . . . . . . . . . . . . . . . . . Machines Sabotaged . | . . . . . . . . . . . . . . . . . . . . . . . . . . . . . . Overloaded Fab Kills . | . . . . . . . . . . . . . . . . . . . . . . . . . . . . . . Hacking | -11 -10 -10 -10 -9 -8 -7 -7 -7 -7 -6 -6 -6 -6 -6 -6 -5 -5 -5 -5 -4 -4 -4 -4 -4 -3 -3 -2 -1 -1 --------- Run | Yrd Mat Min Exi Min Mat Fac Low Low Dat Pro Fac Ext Cet Arc Hub Fac Upp Upp Zhi Pro Fac Upp Upp War Pro Res Res Acc Com Machines Accessed 167 | . 9 . 4 . 13 33 1 2 4 . 16 4 1 . 4 25 . . 5 . 14 1 . 4 . 12 2 7 6 Terminals 81 | . 6 . . . 7 18 . . . . 6 4 1 . 3 11 . . . . 7 . . . . 7 1 4 6 Fabricators 15 | . . . . . . 4 . . . . 3 . . . . 4 . . . . 3 . . . . 1 . . . Repair Stations 16 | . 1 . . . 1 3 . . . . 5 . . . . 3 . . . . 1 . . . . 1 . 1 . Recycling Units 11 | . 2 . . . 2 2 . . . . . . . . . 3 . . . . 1 . . . . 1 . . . Scanalyzers 8 | . . . . . 2 2 . . . . 1 . . . . 1 . . . . 1 . . . . 1 . . . Garrison Access 15 | . . . . . 1 4 . . . . 1 . . . 1 3 . . . . 1 . . . . 1 1 2 . Total Hacks 696 | . 34 . 49 . 46 75 1 9 31 . 53 14 4 . 10 137 . . 18 . 78 5 . 8 . 75 6 25 18 Successful 508 | . 18 . 49 . 32 37 1 9 31 . 42 9 . . 4 104 . . 18 . 66 5 . 8 . 52 2 14 7 Failed 187 | . 16 . . . 14 38 . . . . 11 5 4 . 6 33 . . . . 11 . . . . 23 4 11 11 Catastrophic 23 | . 1 . . . 1 8 . . . . 2 . 1 . . 4 . . . . . . . . . 4 . . 2 Database Lockouts 1 | . . . . . . . . . . . . . . . . . . . . . 1 . . . . . . . . Manual 229 | . 15 . 1 . 18 27 . . . . 11 9 1 . 7 60 . . . . 34 . . 1 . 29 1 4 11 Terminals 316 | . 22 . . . 23 34 . . . . 19 14 4 . 9 73 . . . . 48 . . . . 33 4 15 18 Fabricators 62 | . . . . . . 10 . . . . 8 . . . . 17 . . . . 20 . . . . 7 . . . Repair Stations 96 | . 2 . . . 5 8 . . . . 23 . . . . 23 . . . . 4 . . . . 25 . 6 . Recycling Units 43 | . 10 . . . 7 7 . . . . . . . . . 11 . . . . 2 . . . . 6 . . . Scanalyzers 33 | . . . . . 10 6 . . . . 2 . . . . 10 . . . . 3 . . . . 2 . . . Garrison Access 25 | . . . . . 1 10 . . . . 1 . . . 1 3 . . . . 1 . . . . 2 2 4 . Terminal Hacks 268 | . 9 . 49 . 9 9 1 9 31 . 10 9 . . 1 41 . . 18 . 32 5 . 8 . 14 1 8 4 Record 89 | . . . 49 . . . . 8 11 . . . . . . 2 . . 6 . . 5 . 7 . 1 . . . Part Schematic 35 | . 1 . . . 1 2 . . 11 . . 2 . . . 7 . . 4 . 5 . . . . 2 . . . Robot Schematic 7 | . 1 . . . . . . . 6 . . . . . . . . . . . . . . . . . . . . Robot Analysis 8 | . 1 . . . . . . . . . . . . . . 3 . . 4 . . . . . . . . . . Prototype ID Bank 19 | . 2 . . . 2 1 . . 3 . 1 . . . . 5 . . 4 . . . . . . 1 . . . Open Door 6 | . . . . . . . 1 1 . . . 2 . . . . . . . . . . . 1 . . . . 1 Level Access Points 2 | . . . . . . . . . . . . . . . . . . . . . . . . . . 1 1 . . Branch Access Points 6 | . 1 . . . 1 1 . . . . 1 . . . . 1 . . . . 1 . . . . . . . . Emergency Access Points 7 | . . . . . . . . . . . . . . . . 3 . . . . 3 . . . . . . . 1 Machine Index 3 | . . . . . . . . . . . . . . . . . . . . . . . . . . 1 . 1 1 Terminal Index 7 | . . . . . 1 1 . . . . 1 . . . 1 1 . . . . 1 . . . . 1 . . . Fabricator Index 3 | . . . . . . . . . . . 1 . . . . . . . . . 1 . . . . 1 . . . Repair Station Index 3 | . . . . . . 1 . . . . 1 . . . . . . . . . . . . . . 1 . . . Garrison Index 1 | . . . . . . . . . . . . . . . . . . . . . 1 . . . . . . . . Alert Level 4 | . . . . . 1 . . . . . . . . . . . . . . . 1 . . . . 1 . 1 . Unreport Threat 18 | . . . . . 2 1 . . . . 2 2 . . . 5 . . . . 5 . . . . . . 1 . Locate Traps 14 | . 2 . . . . . . . . . 2 1 . . . 5 . . . . 3 . . . . . . 1 . Recall Investigation 7 | . . . . . . 1 . . . . . . . . . 2 . . . . 3 . . . . 1 . . . Recall Extermination 7 | . . . . . . . . . . . . . . . . 1 . . . . 2 . . . . 3 . 1 . Recall Reinforcements 6 | . . . . . . . . . . . . . . . . 3 . . . . 3 . . . . . . . . Hauler Manifests 2 | . 1 . . . . 1 . . . . . . . . . . . . . . . . . . . . . . . Registered Components 1 | . . . . . . . . . . . . . . . . 1 . . . . . . . . . . . . . Registered Prototypes 2 | . . . . . . . . . . . . . . . . 1 . . . . 1 . . . . . . . . Zone Layout 10 | . . . . . 1 . . . . . 1 2 . . . 1 . . . . 2 . . . . . . 3 . Disengage Seal 1 | . . . . . . . . . . . . . . . . . . . . . . . . . . . . . 1 Fabricator Hacks 40 | . . . . . . 4 . . . . 5 . . . . 10 . . . . 15 . . . . 6 . . . Network Status 2 | . . . . . . 1 . . . . . . . . . 1 . . . . . . . . . . . . . Load Schematic 25 | . . . . . . 2 . . . . 4 . . . . 7 . . . . 9 . . . . 3 . . . Build 13 | . . . . . . 1 . . . . 1 . . . . 2 . . . . 6 . . . . 3 . . . Repair Station Hacks 83 | . 2 . . . 5 8 . . . . 19 . . . . 21 . . . . 4 . . . . 21 . 3 . Scan Component 45 | . 1 . . . 3 4 . . . . 11 . . . . 11 . . . . 2 . . . . 11 . 2 . Repair 37 | . 1 . . . 2 4 . . . . 7 . . . . 10 . . . . 2 . . . . 10 . 1 . Refit 1 | . . . . . . . . . . . 1 . . . . . . . . . . . . . . . . . . Recycling Unit Hacks 16 | . 5 . . . 2 2 . . . . . . . . . 4 . . . . 2 . . . . 1 . . . Report Inventory 1 | . 1 . . . . . . . . . . . . . . . . . . . . . . . . . . . . Retrieve Matter 3 | . 1 . . . . . . . . . . . . . . 1 . . . . 1 . . . . . . . . Retrieve Components 12 | . 3 . . . 2 2 . . . . . . . . . 3 . . . . 1 . . . . 1 . . . Scanalyzer 28 | . . . . . 9 3 . . . . 2 . . . . 9 . . . . 3 . . . . 2 . . . Insert Component 12 | . . . . . 3 2 . . . . 1 . . . . 2 . . . . 2 . . . . 2 . . . Analyze 16 | . . . . . 6 1 . . . . 1 . . . . 7 . . . . 1 . . . . . . . . Garrison Access Hacks 13 | . . . . . 1 2 . . . . 1 . . . 1 3 . . . . 1 . . . . 1 1 2 . Seal Access 13 | . . . . . 1 2 . . . . 1 . . . 1 3 . . . . 1 . . . . 1 1 2 . Unauthorized Hacks 60 | . 2 . . . 6 9 . . . . 5 . . . 2 16 . . . . 9 . . . . 7 . 1 3 Terminals 28 | . 1 . . . 2 7 . . . . 2 . . . 2 2 . . . . 4 . . . . 4 . 1 3 Assimilate 16 | . . . . . . 5 . . . . . . . . 2 1 . . . . 3 . . . . 3 . . 2 Botnet 10 | . 1 . . . 2 1 . . . . 1 . . . . 1 . . . . 1 . . . . 1 . 1 1 Operators 2 | . . . . . . 1 . . . . 1 . . . . . . . . . . . . . . . . . . Fabricators 16 | . . . . . . . . . . . 3 . . . . 7 . . . . 5 . . . . 1 . . . Prioritize 5 | . . . . . . . . . . . . . . . . 2 . . . . 2 . . . . 1 . . . Haulers 1 | . . . . . . . . . . . . . . . . 1 . . . . . . . . . . . . . Recompile 10 | . . . . . . . . . . . 3 . . . . 4 . . . . 3 . . . . . . . . Repair Stations . | . . . . . . . . . . . . . . . . . . . . . . . . . . . . . . Recycling Units 16 | . 1 . . . 4 2 . . . . . . . . . 7 . . . . . . . . . 2 . . . Monitor 1 | . . . . . 1 . . . . . . . . . . . . . . . . . . . . . . . . Reject 5 | . . . . . 1 . . . . . . . . . . 3 . . . . . . . . . 1 . . . Recyclers 1 | . . . . . . . . . . . . . . . . 1 . . . . . . . . . . . . . Mask 8 | . . . . . 2 2 . . . . . . . . . 3 . . . . . . . . . 1 . . . Tunnel 1 | . 1 . . . . . . . . . . . . . . . . . . . . . . . . . . . . Scanalyzers . | . . . . . . . . . . . . . . . . . . . . . . . . . . . . . . Garrison Access . | . . . . . . . . . . . . . . . . . . . . . . . . . . . . . . Data Cores Recovered 3 | . . . . . . . . . . . . . . . 1 1 . . . . . . . . . . . 1 . Used 2 | . . . . . . . . . . . . . . . 1 . . . . . . . . . . . . 1 . Hacking Detections 100 | . 8 . . . 9 29 . . . . 13 3 1 . 3 11 . . . . 8 . . . . 6 1 4 4 Full Trace Events 17 | . 4 . . . 2 6 . . . . 3 . . . 1 . . . . . . . . . . 1 . . . Feedback Events 2 | . . . . . 1 . . . . . 1 . . . . . . . . . . . . . . . . . . Corruption 2 | . . . . . 1 . . . . . 1 . . . . . . . . . . . . . . . . . . Feedback Blocked . | . . . . . . . . . . . . . . . . . . . . . . . . . . . . . . Robot Schematics Acquired 7 | . 1 . . . . . . . 6 . . . . . . . . . . . . . . . . . . . . Robots Built . | . . . . . . . . . . . . . . . . . . . . . . . . . . . . . . Authchips . | . . . . . . . . . . . . . . . . . . . . . . . . . . . . . . Time . | . . . . . . . . . . . . . . . . . . . . . . . . . . . . . . Total Robot Build Rating . | . . . . . . . . . . . . . . . . . . . . . . . . . . . . . . Part Schematics Acquired 42 | . 1 . . . 4 3 . . 11 . 1 2 . . . 9 . . 4 . 5 . . . . 2 . . . Parts Built 17 | . . . . . . 1 . . . . 1 . . . . 2 . . . . 10 . . . . 3 . . . Authchips 11 | . . . . . . . . . . . 1 . . . . 2 . . . . 6 . . . . 2 . . . Time 741 | . . . . . . 36 . . . . 56 . . . . 168 . . . . 201 . . . . 280 . . . Total Part Build Rating 123 | . . . . . . 3 . . . . 6 . . . . 12 . . . . 81 . . . . 21 . . . Parts Repaired 37 | . 1 . . . 2 4 . . . . 7 . . . . 10 . . . . 2 . . . . 10 . 1 . Time 1394 | . 26 . . . 76 112 . . . . 266 . . . . 462 . . . . 26 . . . . 402 . 24 . Parts Recycled . | . . . . . . . . . . . . . . . . . . . . . . . . . . . . . . Recycled Matter . | . . . . . . . . . . . . . . . . . . . . . . . . . . . . . . Retrieved Matter 166 | . 166 . . . . . . . . . . . . . . . . . . . . . . . . . . . . Retrieved Components 52 | . 10 . . . 19 6 . . . . . . . . . 15 . . . . . . . . . 2 . . . Parts Scanalyzed 8 | . . . . . 3 2 . . . . . . . . . 2 . . . . 1 . . . . . . . . Part Schematics Acquired 8 | . . . . . 3 1 . . . . 1 . . . . 2 . . . . 1 . . . . . . . . Parts Damaged 2 | . . . . . 1 . . . . . . . . . . 1 . . . . . . . . . . . . . Bothacking | -11 -10 -10 -10 -9 -8 -7 -7 -7 -7 -6 -6 -6 -6 -6 -6 -5 -5 -5 -5 -4 -4 -4 -4 -4 -3 -3 -2 -1 -1 ------------ Run | Yrd Mat Min Exi Min Mat Fac Low Low Dat Pro Fac Ext Cet Arc Hub Fac Upp Upp Zhi Pro Fac Upp Upp War Pro Res Res Acc Com Used RIF Installer . | . . . . . . . . . . . . . . . . . . . . . . . . . . . . . . Robots Hacked . | . . . . . . . . . . . . . . . . . . . . . . . . . . . . . . Non-combat . | . . . . . . . . . . . . . . . . . . . . . . . . . . . . . . Combat . | . . . . . . . . . . . . . . . . . . . . . . . . . . . . . . Robot Hacks Applied . | . . . . . . . . . . . . . . . . . . . . . . . . . . . . . . Relay Couplers Released . | . . . . . . . . . . . . . . . . . . . . . . . . . . . . . . Fabnet Peak Effective % . | . . . . . . . . . . . . . . . . . . . . . . . . . . . . . . Robots Rewired 3 | . . . . . . . . . . . . 3 . . . . . . . . . . . . . . . . . Allies Hacked 3 | . . . . . . . . . . . . . . . . 1 . . . . . . . . . 1 . . 1 Hacks Repelled . | . . . . . . . . . . . . . . . . . . . . . . . . . . . . . . Allies | -11 -10 -10 -10 -9 -8 -7 -7 -7 -7 -6 -6 -6 -6 -6 -6 -5 -5 -5 -5 -4 -4 -4 -4 -4 -3 -3 -2 -1 -1 -------- Run | Yrd Mat Min Exi Min Mat Fac Low Low Dat Pro Fac Ext Cet Arc Hub Fac Upp Upp Zhi Pro Fac Upp Upp War Pro Res Res Acc Com Total Allies 33 | . . 2 . . . 4 . . . . . 13 5 . . 1 . . . . 2 2 . . . 3 . . 1 Largest Group 9 | . . 2 . . . 1 . . . . . 9 8 7 4 1 . . . . 1 2 . . . 2 . . 1 Highest-Rated Group 704 | . . 41 . . . 26 . . . . . 331 704 545 384 26 . . . . 26 92 . . . 55 . . 45 Highest-Rated Ally 159 | . . 31 . . . 26 . . . . . 159 159 96 96 26 . . . . 26 46 . . . 45 . . 45 Total Orders 45 | . . . . . . . . . . . 2 5 . . . 6 1 13 . 2 4 3 9 . . . . . . EXPLORE 15 | . . . . . . . . . . . 1 . . . . 2 . 6 . . 1 1 4 . . . . . . RETURN 30 | . . . . . . . . . . . 1 5 . . . 4 1 7 . 2 3 2 5 . . . . . . Ally Attacks 383 | . . 9 . . . . . . . . 9 134 24 23 48 19 15 43 . 8 21 12 18 . . . . . . Total Damage 8301 | . . 105 . . . . . . . . 216 2448 502 827 1744 405 286 601 . 191 407 210 359 . . . . . . Kills 78 | . . 3 . . . . . . . . 1 22 6 3 17 4 2 10 . 1 4 3 2 . . . . . . Allies Corrupted 2 | . . . . . . . . . . . . . . . . . . . . . . . . . . 2 . . . Allies Melted 1 | . . . . . . 1 . . . . . . . . . . . . . . . . . . . . . . . Intel | -11 -10 -10 -10 -9 -8 -7 -7 -7 -7 -6 -6 -6 -6 -6 -6 -5 -5 -5 -5 -4 -4 -4 -4 -4 -3 -3 -2 -1 -1 ------- Run | Yrd Mat Min Exi Min Mat Fac Low Low Dat Pro Fac Ext Cet Arc Hub Fac Upp Upp Zhi Pro Fac Upp Upp War Pro Res Res Acc Com Robot Analysis Total 8 | . 1 . . . . . . . . . . . . . . 3 . . 4 . . . . . . . . . . Derelict Logs Recovered 15 | . . 1 . 1 . . 2 2 . 2 . . . . . . 2 . . . . 2 3 . . . . . . Drone Launches 44 | . . . . . . . . . . . 2 8 . . . 6 2 11 . 2 6 2 5 . . . . . . Drone Recoveries 43 | . . . . . . . . . . . 2 8 . . . 6 2 11 . 2 5 2 5 . . . . . . Exploration | -11 -10 -10 -10 -9 -8 -7 -7 -7 -7 -6 -6 -6 -6 -6 -6 -5 -5 -5 -5 -4 -4 -4 -4 -4 -3 -3 -2 -1 -1 ------------- Run | Yrd Mat Min Exi Min Mat Fac Low Low Dat Pro Fac Ext Cet Arc Hub Fac Upp Upp Zhi Pro Fac Upp Upp War Pro Res Res Acc Com Turns Passed 41288 | 123 2300 1412 1326 2018 6432 2901 627 976 41 394 1961 2268 395 969 833 3534 201 645 206 347 1733 884 644 605 316 2356 863 652 3326 Spaces Moved 40556 | 52 957 657 810 1017 2893 4324 1032 1374 88 720 2647 922 151 325 335 4014 387 716 392 666 2577 1475 1060 918 385 3145 1535 1026 3956 Core 5 | 5 . . . . . . . . . . . . . . . . . . . . . . . . . . . . . Treads 7330 | 47 957 657 809 1017 2587 . . . . . . 443 151 325 335 2 . . . . . . . . . . . . . Legs 1 | . . . 1 . . . . . . . . . . . . . . . . . . . . . . . . . . Wheels . | . . . . . . . . . . . . . . . . . . . . . . . . . . . . . . Hover 33220 | . . . . . 306 4324 1032 1374 88 720 2647 479 . . . 4012 387 716 392 666 2577 1475 1060 918 385 3145 1535 1026 3956 Flight . | . . . . . . . . . . . . . . . . . . . . . . . . . . . . . . Fastest Speed 31 | 50 160 160 90 160 45 40 43 43 43 43 43 45 160 160 160 40 43 43 43 43 40 45 45 37 37 34 39 36 31 Average Speed 68 | 149 160 160 159 160 169 42 44 47 43 43 44 201 186 160 160 43 43 46 43 43 43 45 45 43 71 39 41 36 46 Slowest Speed 400 | 160 160 160 160 160 241 100 103 103 103 103 106 400 320 160 160 226 43 100 105 43 148 45 45 45 148 133 131 39 216 Overloaded Moves 40 | . . . . . . . . . . . . . . . . . . . . . . . . 6 15 10 . . 9 Propulsion Burnouts . | . . . . . . . . . . . . . . . . . . . . . . . . . . . . . . Robots Hopped . | . . . . . . . . . . . . . . . . . . . . . . . . . . . . . . Cave-ins Triggered 1 | . . . . . . . . . . . . . . . . . . . . . . . . . . . 1 . . Exploration Rate (%) 70 | 4 97 97 92 96 97 83 93 98 73 77 38 79 64 96 36 67 66 79 60 73 36 95 92 78 52 48 40 23 91 Regions Visited 29 Branch Regions 20 Pre-discovered Areas 19 | . 1 . 1 2 . . 1 4 1 2 . . . . . . . . 3 . . 3 1 . . . . . . Known Exits Taken 15 | . 1 1 . . 1 1 1 . . . 1 . . . . 1 1 . . . 1 1 1 1 1 1 1 . . Unknown Exits Taken 14 | 1 . . 1 1 . . . 1 1 1 . 1 1 1 1 . . 1 1 1 . . . . . . . 1 . Scrap Searched 27 | . . 2 . 1 . . 4 3 . 4 . . . . . . 2 1 . . . 5 3 . 2 . . . . Spaces Dug 367 | . . 1 . 13 25 54 . 6 . 22 19 26 . . 10 44 . . . 1 29 1 1 . . 52 13 21 29 Terrain Destroyed 1143 | . . 10 . 15 47 56 32 40 . 59 33 38 . 25 31 69 12 123 . 106 62 122 61 22 22 59 49 21 29 Melee 267 | . . . . . 8 53 . 6 . . 17 4 . . 5 41 . . . 1 26 1 1 . . 52 13 21 18 Projectile 137 | . . 10 . 2 1 3 . 5 . 2 11 16 . 25 26 12 . 7 . . 6 . . . 9 . . . 2 AOE 739 | . . . . 13 38 . 32 29 . 57 5 18 . . . 16 12 116 . 105 30 121 60 22 13 7 36 . 9 Terrain Rammed . | . . . . . . . . . . . . . . . . . . . . . . . . . . . . . . Walls Destroyed . | . . . . . . . . . . . . . . . . . . . . . . . . . . . . . . Machines Disabled . | . . . . . . . . . . . . . . . . . . . . . . . . . . . . . . Actions | -11 -10 -10 -10 -9 -8 -7 -7 -7 -7 -6 -6 -6 -6 -6 -6 -5 -5 -5 -5 -4 -4 -4 -4 -4 -3 -3 -2 -1 -1 --------- Run | Yrd Mat Min Exi Min Mat Fac Low Low Dat Pro Fac Ext Cet Arc Hub Fac Upp Upp Zhi Pro Fac Upp Upp War Pro Res Res Acc Com Total 51864 | 74 1547 965 842 1358 4054 5240 1185 1654 89 791 3344 1230 262 687 546 5603 415 1017 421 714 3088 1658 1212 1102 413 4155 1725 1252 5221 Wait 8333 | . 436 278 . 294 733 715 121 230 . 47 525 155 93 252 141 1246 16 266 . 31 357 126 119 123 4 793 66 181 985 Move 40526 | 51 956 656 809 1016 2892 4323 1031 1373 87 719 2646 921 150 324 334 4013 386 715 391 665 2576 1474 1059 917 384 3144 1534 1025 3955 Hop . | . . . . . . . . . . . . . . . . . . . . . . . . . . . . . . Pick Up 274 | 6 22 2 11 2 39 21 2 2 . . 24 9 2 6 . 37 1 4 3 1 19 5 3 5 4 19 9 2 14 Fast Attach 273 | 7 5 . 8 2 27 12 3 1 . . 15 16 3 9 2 33 1 2 10 1 15 3 4 13 3 23 25 2 28 Attach 172 | . 4 . 1 . 17 5 3 7 . 6 16 9 . 1 . 30 2 5 2 2 13 6 4 5 1 9 6 1 17 Detach 92 | . . . . . 2 2 2 6 . 5 13 16 . 1 . 13 2 4 . 2 6 1 4 2 . 3 5 . 3 Swap 236 | . 11 . 1 8 34 28 12 4 2 6 15 7 3 2 11 29 1 . . . 11 8 2 3 . 17 7 1 13 Drop 426 | . 20 2 11 9 71 27 3 4 . 1 27 13 7 12 1 59 2 6 11 2 23 9 6 18 5 26 35 2 14 Fire 748 | 10 93 27 . 26 219 13 2 17 . 7 16 44 4 80 51 39 1 15 . 8 12 19 4 11 11 1 9 . 9 Melee 737 | . . . . . 10 94 6 10 . . 47 22 . . 5 93 3 . 4 2 56 7 7 5 1 116 29 38 182 Ram . | . . . . . . . . . . . . . . . . . . . . . . . . . . . . . . Kick . | . . . . . . . . . . . . . . . . . . . . . . . . . . . . . . Crush 1 | . . . . . . . . . . . . . . . 1 . . . . . . . . . . . . . . Escape Stasis 28 | . . . . . . . . . . . . 13 . . . 11 . . . . . . . . . 4 . . . Rewire 7 | . . . 1 . . . . . . . . 5 . . . . . . . . . . . . . . . . 1 Trap 1 | . . . . 1 . . . . . . . . . . . . . . . . . . . . . . . . . Miscellaneous 10 | . . . . . 10 . . . . . . . . . . . . . . . . . . . . . . . . Route ------- -11/Scrapyard -10/Materials (discovered 5 exits: [*Mat x3] / *Min / *Sub) -10/Mines (discovered 3 exits: [*Mat x2] / *Exi) -10/Exiles (discovered 2 exits: [*Min x2]) -9/Mines (discovered 2 exits: *Mat x2) -8/Materials (discovered 3 exits: *Fac x3) -7/Factory (discovered 4 exits: *Fac x2 / *Low x2) -7/Lower Caves -7/Lower Caves (discovered 2 exits: *Fac / *Dat) -7/Data Miner -6/Proximity Caves -6/Factory (discovered 4 exits: *Low x2 / *Ext x2) -6/Extension (discovered 3 exits: *Fac x2 / *Cet) -6/Cetus -6/Archives (discovered 3 exits: *Fac / *Hub x2) -6/Hub_04(d) (discovered 2 exits: *Fac x2) -5/Factory (discovered 4 exits: *Fac x2 / *Upp x2) -5/Upper Caves -5/Upper Caves (discovered 2 exits: *Fac / *Zhi) -5/Zhirov -4/Proximity Caves -4/Factory (discovered 3 exits: *Res / *Upp x2) -4/Upper Caves -4/Upper Caves (discovered 2 exits: *Res / *War) -4/Warlord -3/Proximity Caves -3/Research (discovered 4 exits: *Res x3 / [*Tes]) -2/Research (discovered 4 exits: *Acc x3 / [*Qua]) -1/Access -1/Command (discovered 2 exits: [*Sur x2]) 0b11 Command History --------- Turn | Location | Event 5 | -11/Scrapyard | Discovered new exit (range 15) 124 | -11/Scrapyard | Entered Materials 313 | -10/Materials | Build established: Mutant 371 | -10/Materials | Discovered new exit (range 8) 459 | -10/Materials | Repaired Lgt. Treads 865 | -10/Materials | Discovered new exit (range 16) 1214 | -10/Materials | Identified exit to Mines 1444 | -10/Materials | Build established: Scavenger-Mutant 1467 | -10/Materials | Discovered new exit (range 5) 1866 | -10/Materials | Discovered new exit (range 16) 2015 | -10/Materials | Build established: Mutant 2360 | -10/Materials | Discovered new exit (range 10) 2373 | -10/Materials | Identified exit to Subcaves 2424 | -10/Materials | Entered Mines 2434 | -10/Mines | Discovered new exit (range 11) 2651 | -10/Mines | Discovered new exit (range 16) 2824 | -10/Mines | Deemed a non-threat by the Exiles lab entrance 2824 | -10/Mines | Discovered new exit (range 5) 2847 | -10/Mines | Assembled infested the area 2852 | -10/Mines | Assisted by a Guerilla fighting off Assembled 2873 | -10/Mines | Identified exit to Exiles 3371 | -10/Mines | Received a Rocket Launcher from a helpful Derelict 3660 | -10/Mines | Learned Materials emergency access door positions 3836 | -10/Mines | Entered Exiles 3864 | -10/Exiles | Discovered new exit (range 15) 3899 | -10/Exiles | Met 8R-AWN 3924 | -10/Exiles | Met EX-HEX 3976 | -10/Exiles | Met EX-BIN 4094 | -10/Exiles | Met EX-DEC 4107 | -10/Exiles | Learned location of Zion (-6) 4201 | -10/Exiles | Visited The Gauntlet 4596 | -10/Exiles | Discovered new exit (range 14) 4745 | -10/Exiles | Aligned with FarCom system 4746 | -10/Exiles | Given EX-Vault access code 4815 | -10/Exiles | Opened EX-Vault 4837 | -10/Exiles | Found Prototype Leg 4837 | -10/Exiles | Identified Potential Leg 4847 | -10/Exiles | Found Prototype Energy Cannon 4847 | -10/Exiles | Identified Firepult 4958 | -10/Exiles | Warned to stay clear of 0b10 Research branches 5162 | -10/Exiles | Left Exiles lab with Firepult 5162 | -10/Exiles | Entered Mines 5477 | -9/Mines | Learned location of Storage (-9) 5484 | -9/Mines | Discovered new exit (range 4) 5692 | -9/Mines | Found a hidden stash of uninstalled traps 6264 | -9/Mines | Discovered new exit (range 9) 7180 | -9/Mines | Entered Materials 7180 | -8/Materials | Evolved 4 slots: Propulsion x1, Utility x3 7576 | -8/Materials | Build established: Scavenger-Mutant 8998 | -8/Materials | Discovered new exit (range 5) 9010 | -8/Materials | Identified exit to Factory 9852 | -8/Materials | Build established: Mutant 10495 | -8/Materials | Destroyed 7 combat bots 10574 | -8/Materials | Discovered exit to Factory (range 4) 10787 | -8/Materials | Build established: Scavenger-Mutant 11028 | -8/Materials | Discovered exit to Factory (range 16) 12541 | -8/Materials | Repaired Lgt. Nuclear Core 12580 | -8/Materials | Repaired Arm. Treads 13580 | -8/Materials | First assault squad dispatched 13612 | -8/Materials | Entered Factory 13612 | -7/Factory | Evolved 2 slots: Propulsion x1, Utility x1 13882 | -7/Factory | Found Prototype Launcher 13882 | -7/Factory | Identified Rocket Array 13901 | -7/Factory | Discovered new exit (range 4) 13950 | -7/Factory | Build established: Mutant 13989 | -7/Factory | Found Powered Armor 14202 | -7/Factory | Identified exit to Lower Caves 14845 | -7/Factory | Build established: Hacker-Mutant 14897 | -7/Factory | Fabricated Hvy. Assault Cannon (x1) 15045 | -7/Factory | Repaired Aerolev Unit 15355 | -7/Factory | Repaired Aerolev Unit 15379 | -7/Factory | Repaired Powered Armor 15649 | -7/Factory | Build established: Hacker-Scout 15819 | -7/Factory | Discovered new exit (range 18) 15951 | -7/Factory | Discovered new exit (range 2) 16302 | -7/Factory | Repaired Aerolev Unit 16513 | -7/Factory | Entered Lower Caves 16665 | -7/Lower Caves | Identified exit to Lower Caves 16814 | -7/Lower Caves | Build established: Hacker-Mutant 16826 | -7/Lower Caves | Attacked by a delusional Derelict stockpiling parts 17140 | -7/Lower Caves | Entered another Lower Caves area 17169 | -7/Lower Caves | Discovered new exit (range 7) 17294 | -7/Lower Caves | Ambushed by research squad 17371 | -7/Lower Caves | Learned location of Armory (-3) 17371 | -7/Lower Caves | Learned Factory trap positions 17371 | -7/Lower Caves | Learned Research trap positions 17371 | -7/Lower Caves | Learned Research stockpile data 17371 | -7/Lower Caves | Learned Armory security intel 17384 | -7/Lower Caves | Encountered a Warlord checkpoint 17568 | -7/Lower Caves | Attracted the attention of an 0b10 checkpoint 17896 | -7/Lower Caves | Ambushed by wild Derelicts 17994 | -7/Lower Caves | Discovered new exit (range 10) 18116 | -7/Lower Caves | Entered Data Miner 18116 | -7/Data Miner | Discovered new exit (range 6) 18123 | -7/Data Miner | Met Data Miner 18133 | -7/Data Miner | Learned location of Section 7 (-2) 18133 | -7/Data Miner | Acquired the access code to Warlord's prototype stash 18139 | -7/Data Miner | Received God Mode back door access code from Data Miner 18157 | -7/Data Miner | Entered Proximity Caves 18366 | -6/Proximity Caves | Spotter reported a threat 18403 | -6/Proximity Caves | Discovered new exit (range 7) 18502 | -6/Proximity Caves | Attracted the attention of an 0b10 outpost 18523 | -6/Proximity Caves | Spotter reported a threat 18550 | -6/Proximity Caves | Spotter reported a threat 18551 | -6/Proximity Caves | Entered Factory 18551 | -6/Factory | Evolved 2 slots: Utility x2 18552 | -6/Factory | Loaded intel: 98 trap records 18577 | -6/Factory | Identified exit to Lower Caves 18577 | -6/Factory | Identified exit to Extension 18901 | -6/Factory | Search patrols dispatched 19099 | -6/Factory | Repaired Aerolev Unit 19251 | -6/Factory | Search patrols dispatched 19406 | -6/Factory | Repaired Powered Armor 19521 | -6/Factory | Fabricated Combat Drone Bay? 19704 | -6/Factory | Garrison activated, responded to threat 20122 | -6/Factory | Repaired Gravmag Array 20144 | -6/Factory | Repaired Hvy. Assault Cannon 20251 | -6/Factory | Repaired Powered Armor 20312 | -6/Factory | Repaired Aerolev Unit 20405 | -6/Factory | Repaired Mic. Nuclear Core 20512 | -6/Factory | Entered Extension 20544 | -6/Extension | Rescued a captive Derelict 20545 | -6/Extension | Rescued a captive Derelict 20723 | -6/Extension | Rescued a captive Derelict 20723 | -6/Extension | Rescued a captive Derelict 20785 | -6/Extension | Rescued a captive Derelict 20785 | -6/Extension | Rescued a captive Derelict 20836 | -6/Extension | Rescued a captive Derelict 21117 | -6/Extension | Allies destroyed B-75 Beast 21141 | -6/Extension | Allies destroyed B-75 Beast 21321 | -6/Extension | Discovered new exit (range 3) 21877 | -6/Extension | Energy Cycler disabled 21877 | -6/Extension | Rescued a captive Derelict 21877 | -6/Extension | Rescued a captive Derelict 21878 | -6/Extension | Rescued a captive Derelict 21881 | -6/Extension | Rescued a captive Derelict 21882 | -6/Extension | Rescued a captive Derelict 21884 | -6/Extension | Rescued a captive Derelict 21888 | -6/Extension | Rescued A7 21889 | -6/Extension | Rescued a captive Derelict 22586 | -6/Extension | Discovered new exit (range 10) 22589 | -6/Extension | Discovered new exit (range 6) 22780 | -6/Extension | Entered Cetus 22780 | -6/Cetus | Accompanied by 7 allies (A7) 22785 | -6/Cetus | Acquired a Cetus Manufacturing Module code from A7 22819 | -6/Cetus | Spotted Cetus Guard 22819 | -6/Cetus | Spotted Cetus Guard 22822 | -6/Cetus | Spotted Cetus Guard 22824 | -6/Cetus | Allies destroyed Cetus Guard 22825 | -6/Cetus | Spotted Cetus Guard 22829 | -6/Cetus | Allies destroyed Cetus Guard 22832 | -6/Cetus | Allies destroyed Cetus Guard 22837 | -6/Cetus | Allies destroyed Cetus Guard 22895 | -6/Cetus | Lost 4 allies 22951 | -6/Cetus | Started Cetus Manufacturing Module 22976 | -6/Cetus | Manufactured an Enhanced Grunt 23001 | -6/Cetus | Manufactured an Enhanced Grunt 23026 | -6/Cetus | Manufactured an Enhanced Grunt 23051 | -6/Cetus | Manufactured an Enhanced Grunt 23076 | -6/Cetus | Manufactured an Enhanced Grunt 23133 | -6/Cetus | Discovered new exit (range 16) 23175 | -6/Cetus | Entered Archives 23175 | -6/Archives | Accompanied by 8 allies (A7) 23384 | -6/Archives | Discovered new exit (range 16) 23617 | -6/Archives | Discovered new exit (range 16) 23774 | -6/Archives | Discovered new exit (range 14) 24144 | -6/Archives | Entered Hub_04(d) 24144 | -6/Hub_04(d) | Accompanied by 4 allies 24494 | -6/Hub_04(d) | First assault squad dispatched 24657 | -6/Hub_04(d) | Discovered new exit (range 4) 24664 | -6/Hub_04(d) | Discovered new exit (range 10) 24926 | -6/Hub_04(d) | Network Hub disabled 24926 | -6/Hub_04(d) | Network Hub disabled 24926 | -6/Hub_04(d) | Spotted Lightning 24926 | -6/Hub_04(d) | Spotted Lightning 24926 | -6/Hub_04(d) | Spotted Lightning 24929 | -6/Hub_04(d) | System corruption reached 10% 24977 | -6/Hub_04(d) | Entered Factory 24977 | -5/Factory | Evolved 2 slots: Propulsion x1, Utility x1 25164 | -5/Factory | Repaired Broken Aerolev Unit 25274 | -5/Factory | Repaired Centrium Medium Armor Plating 25313 | -5/Factory | Repaired Hvy. Assault Cannon 25714 | -5/Factory | Discovered new exit (range 6) 26051 | -5/Factory | Build established: Wizard-Mutant 26271 | -5/Factory | Identified exit to Upper Caves 26650 | -5/Factory | Repaired Broken Lrn. Missile Launcher 26705 | -5/Factory | Repaired Centrium Heavy Treads 26736 | -5/Factory | Repaired Aerolev Unit 26759 | -5/Factory | Repaired Powered Armor 26957 | -5/Factory | Fabricated Mni. Smartbomb Launcher (x1) 27277 | -5/Factory | Fabricated Tri-rail Accelerator (x1) 27993 | -5/Factory | Discovered new exit (range 6) 28373 | -5/Factory | Repaired Mni. Smartbomb Launcher 28412 | -5/Factory | Repaired Aerolev Unit? 28470 | -5/Factory | Repaired Gravmag Array 28511 | -5/Factory | Entered Upper Caves 28657 | -5/Upper Caves | Learned Factory stockpile data 28694 | -5/Upper Caves | Identified exit to Upper Caves 28712 | -5/Upper Caves | Entered another Upper Caves area 28718 | -5/Upper Caves | Discovered new exit (range 8) 28948 | -5/Upper Caves | Spotted B-75 Beast 29285 | -5/Upper Caves | Discovered new exit (range 10) 29357 | -5/Upper Caves | Entered Zhirov 29358 | -5/Zhirov | Discovered new exit (range 3) 29366 | -5/Zhirov | Met Zhirov 29376 | -5/Zhirov | Learned location of Quarantine (-2) 29376 | -5/Zhirov | Learned location of Testing (-3) 29376 | -5/Zhirov | Learned location of Command (-1) 29378 | -5/Zhirov | Zhirov requested help retrieving the SGEMP Prototype 29387 | -5/Zhirov | Found Alien Artifact 29387 | -5/Zhirov | Identified Integrated Dissipator 29387 | -5/Zhirov | Installed Integrated Dissipator, increased core heat dissipation (+20) 29467 | -5/Zhirov | Found Alien Artifact 29563 | -5/Zhirov | Entered Proximity Caves 29622 | -4/Proximity Caves | Spotter reported a threat 29622 | -4/Proximity Caves | Spotter reported a threat 29782 | -4/Proximity Caves | Discovered new exit (range 11) 29910 | -4/Proximity Caves | Entered Factory 29910 | -4/Factory | Evolved 2 slots: Power x1, Propulsion x1 29937 | -4/Factory | Discovered new exit (range 8) 29942 | -4/Factory | Identified exit to Upper Caves 29965 | -4/Factory | Identified Transdimensional Reconstructor 30104 | -4/Factory | Found Prototype Processor 30104 | -4/Factory | Identified Exp. Signal Interpreter 30612 | -4/Factory | Fabricated Cmb. Linear Gravjet (x2) 30650 | -4/Factory | Fabricated Cmb. Linear Gravjet (x2) 30688 | -4/Factory | Fabricated Nanoactuators (x2) 30724 | -4/Factory | Fabricated Adv. Powered Armor (x1) 31218 | -4/Factory | Fabricated Cmb. Linear Gravjet (x2) 31310 | -4/Factory | Fabricated Exp. Utility Shielding (x1) 31413 | -4/Factory | Found Powered Armor 31577 | -4/Factory | Repaired Seismic Detector 31595 | -4/Factory | Repaired Mic. Fission Core 31601 | -4/Factory | Central database locked down 31643 | -4/Factory | Entered Upper Caves 31643 | -4/Upper Caves | Accompanied by 1 ally 31873 | -4/Upper Caves | A Commander dispatched an escort 31881 | -4/Upper Caves | Learned location of 1 exit from Factory 31881 | -4/Upper Caves | Learned Research stockpile data 31881 | -4/Upper Caves | Learned Factory security intel 32353 | -4/Upper Caves | Discovered new exit (range 9) 32366 | -4/Upper Caves | Identified exit to Upper Caves 32527 | -4/Upper Caves | Entered another Upper Caves area 32574 | -4/Upper Caves | Discovered new exit (range 6) 32576 | -4/Upper Caves | Identified exit to Research 32612 | -4/Upper Caves | Learned Research terminal intel 32766 | -4/Upper Caves | Spotted B-86 Titan 33069 | -4/Upper Caves | Discovered new exit (range 15) 33076 | -4/Upper Caves | Identified exit to Warlord 33083 | -4/Upper Caves | Learned Research emergency access door positions 33171 | -4/Upper Caves | Entered Warlord 33364 | -4/Warlord | Visited the Vortex Lab 33370 | -4/Warlord | Found Prototype Piercing Weapon 33371 | -4/Warlord | Found Prototype Piercing Weapon 33372 | -4/Warlord | Warlord's base attacked by MAIN.C 33403 | -4/Warlord | Met Warlord 33409 | -4/Warlord | Opened Warlord's prototype stash 33412 | -4/Warlord | Found Prototype Device 33412 | -4/Warlord | Identified Thermal Barrier 33425 | -4/Warlord | Found Prototype Processor 33425 | -4/Warlord | Identified Exp. Targeting Computer 33429 | -4/Warlord | Found Prototype Processor 33429 | -4/Warlord | Identified Exp. Core Analyzer 33431 | -4/Warlord | Found Prototype Hackware 33431 | -4/Warlord | Identified Ghost Barrier 33436 | -4/Warlord | Found Prototype Reactor 33595 | -4/Warlord | Warlord forces counterattacked 33648 | -4/Warlord | Destroyed 9 combat bots 33655 | -4/Warlord | Lost 4 allies 33664 | -4/Warlord | Discovered new exit (range 15) 33673 | -4/Warlord | Spotted Executioner 33673 | -4/Warlord | Spotted Striker 33760 | -4/Warlord | Found Prototype Device 33760 | -4/Warlord | Identified Adv. Kinecellerator 33766 | -4/Warlord | Lost 18 allies 33772 | -4/Warlord | Spotted Striker 33773 | -4/Warlord | Spotted Striker 33775 | -4/Warlord | Identified exit to Proximity Caves 33776 | -4/Warlord | Entered Proximity Caves 34042 | -3/Proximity Caves | Spotted B-86 Titan 34089 | -3/Proximity Caves | Discovered exit to Research (range 7) 34092 | -3/Proximity Caves | Entered Research 34092 | -3/Research | Evolved 2 slots: Propulsion x1, Utility x1 34093 | -3/Research | Loaded intel: 79 trap records 34096 | -3/Research | Loaded intel: 23 terminal locations 34253 | -3/Research | Identified exit to Research 34331 | -3/Research | Discovered new exit (range 11) 34368 | -3/Research | Repaired Lance 34406 | -3/Research | Repaired Cmb. Linear Gravjet? 34469 | -3/Research | Repaired Cmb. Linear Gravjet 34523 | -3/Research | Repaired Cld. Antigrav System 34560 | -3/Research | Repaired Cmb. Linear Gravjet 34611 | -3/Research | Repaired Broken Cmb. Linear Gravjet 34656 | -3/Research | Repaired Mni. Smartbomb Launcher 34694 | -3/Research | Repaired Cmb. Linear Gravjet 34716 | -3/Research | Build established: Hacker-Gladiator 34732 | -3/Research | Repaired Cmb. Linear Gravjet 34812 | -3/Research | Found Prototype Protection 34812 | -3/Research | Identified Centrium Heavy Armor Plating 35065 | -3/Research | Fabricated Femtoactuators? 35310 | -3/Research | Fabricated Exp. Utility Shielding? 35596 | -3/Research | Spotted B-86 Titan 35652 | -3/Research | Identified Vortex Chain Reactor 35652 | -3/Research | Identified Vortex Lance (x2) 35968 | -3/Research | Repaired Exp. Utility Shielding 36120 | -3/Research | Fabricated Exp. Melee Analysis Suite? 36441 | -3/Research | Spotted B-86 Titan 36448 | -3/Research | Entered another Research area 36448 | -2/Research | Warlord forces began assault on 0b10 36448 | -2/Research | Evolved 2 slots: Utility x1, Weapon x1 36495 | -2/Research | Crushed by falling debris 36534 | -2/Research | Identified exit to Access 36558 | -2/Research | Research machine network offline 36634 | -2/Research | Met up with Warlord 36673 | -2/Research | Lost 4 allies 36793 | -2/Research | Build established: Hacker-Mutant 36858 | -2/Research | Found Prototype Device 36858 | -2/Research | Identified Exp. Transmission Jammer 36885 | -2/Research | Spotted Executioner 36906 | -2/Research | Lost 4 allies 36963 | -2/Research | Borebot progress halted 36985 | -2/Research | Spotted Striker 36991 | -2/Research | Found Exp. Melee Analysis Suite 37087 | -2/Research | Borebot progress halted 37104 | -2/Research | Found Prototype Processor 37114 | -2/Research | Identified Spectral Analyzer 37156 | -2/Research | Build established: Hacker-Gladiator 37246 | -2/Research | Spotted Executioner 37269 | -2/Research | Discovered new exit (range 11) 37299 | -2/Research | Found Exp. Core Analyzer 37311 | -2/Research | Entered Access 37311 | -1/Access | Evolved 2 slots: Propulsion x1, Weapon x1 37431 | -1/Access | Repaired Cmb. Linear Gravjet 37602 | -1/Access | Found Enh. Force Lance 37882 | -1/Access | Spotted B-99 Colossus 37956 | -1/Access | Discovered new exit (range 7) 37963 | -1/Access | Entered Command 38119 | -1/Command | Disengaged cave seal 38119 | -1/Command | Derelicts emerged from the dark tunnel 38119 | -1/Command | Welcomed Warlord to Command 38363 | -1/Command | Spotted B-99 Colossus 38367 | -1/Command | Lost 4 allies 38473 | -1/Command | Spotted M Guard 38473 | -1/Command | Spotted M Guard 38498 | -1/Command | Spotted Combat Programmer 38498 | -1/Command | Spotted Combat Programmer 38500 | -1/Command | Warlord commented on Warlord statues 38556 | -1/Command | Warlord destroyed during the assault 38565 | -1/Command | Destroyed M Guard 38565 | -1/Command | All MAIN.C guards destroyed 38642 | -1/Command | Met MAIN.C 38653 | -1/Command | 0b10 Conduit disabled 38667 | -1/Command | Destroyed MAIN.C Shell 38670 | -1/Command | MAIN.C activated Command garrisons 38710 | -1/Command | Destroyed MAIN.C 38711 | -1/Command | Discovered new exit (range 39) 38711 | -1/Command | Discovered new exit (range 102) 38711 | -1/Command | Extracted map data and part IDs from MAIN.C's data core 38742 | -1/Command | Lost 19 parts (1p7n8u3w) 38803 | -1/Command | Core integrity fell below 50% 38806 | -1/Command | Lost 3 parts (2n1u) 38868 | -1/Command | System corruption reached 10% 38898 | -1/Command | Lost 4 parts (1p2n1u) 38969 | -1/Command | Lost 3 parts (2n1w) 39250 | -1/Command | Build established: Scavenger-Mutant 39969 | -1/Command | Found Exp. System Purifier 40840 | -1/Command | Build established: Scavenger-Gladiator 41250 | -1/Command | Found Exp. Force Field 41254 | -1/Command | Found Femtoactuators 41255 | -1/Command | Found Exp. Core Analyzer 41258 | -1/Command | Found Vortex Chain Reactor 41289 | *** | Establishing 0b11! Last Messages --------------- 40993_ Plasma Lance follow-up attack on G-73 Enforcer. 40996_ Sneak attack on G-73 Enforcer. 40996_ G-73 Enforcer destroyed. 41062_ Attempting to rewire S-43 Plague. 41062_ S-43 Plague is broken beyond repair. 41063_ Sneak attack on S-43 Plague. 41063_ S-43 Plague destroyed. 41090_ Sneak attack on Warlord SH-K8T. 41090_ Plasma Lance follow-up attack on Warlord SH-K8T. 41090_ Warlord SH-K8T destroyed. 41095_ Sneak attack on Warlord MG-163. 41095_ Warlord MG-163 destroyed. 41250_ Acquired Exp. Force Field. 41252_ Acquired Exp. System Purifier. 41254_ Acquired Femtoactuators. 41255_ Acquired Exp. Core Analyzer. 41257_ Dropped Mic. Antimatter Reactor. 41258_ Dropped Mni. Fusion Reactor. 41258_ Acquired Vortex Chain Reactor. 41275_ Acquired 20 matter. Map ----- +----------------------------------------------------+ | #???#! #######################"### #??#[] | | #???# * #??#]] | | #???# #??#! | | ] #???# ^^ #??# ! | | ####+###### ^ #??### | | ^ #????? | | """" "" #????? | | """" """" #????? | | """" """" #????? | | """" "" #????? | | *%! #????? | | % = ! """ """ #????? | | ### * """T""" #????? | | ## ] #########"#########/#####?? | | ## # # #?# | | + + # #?# | | ## """" """ ## + #?# | | ### """" ""T""*[ ## # #?# | | #?# """" "" ""%! ## # = #?# | | #### """" *%![ ## #! =[* #?# | | ""## %[= ## % # %[!% #?# | | ""## #########+##########!#####?# | | "## =!* #??????# # " #????# | | ""## =%!######"######### ]! !#[|! ######?# | | ""## ######+#####?###?# ## "%! ## #?# | | #### #?# #?????# @ ## ![#[!! ## #?# | | ### #?# ! #?????# ## #%! ## #?# | | #?# #?????### ## ## ### #?# | | #?# ######### ## ] ##=* #?# *[#?# | | #?# + # ## ##!%=#?#%*[#?# | | #?# # # ########## ] #?#![!#?# | | = #?# # + ########!# ###=+#### | | #?#[ # # !%!% % * [%%%=! | | #?# # # ]%!!! =![!%=/= | | ####+##+#### # ########## !! %%%% | | + # ## ## ######### | | ########+## # # ## ## #######?# | | # ## # ######### ## ## # #?# | | # ## # #???## ## ## # #?# | | # ## # #???# ##+###### # #?# | | # ## # ##### #??# # #?# | | # ## """ + #??# # #?? | | # ## "Y # ########### ### #??# # #?? | | # ## """ # #??#########+#####^^#??# + #?? | | # ## # #??# ##^^#??# # #?? | | # ## !# #??# + #??# # #?? | | # ########### #??# ## #??# # #?? | | # #?????????# #??# ## #??# # #?? | | # #?????????# #??# ## #??# # #?? | | # #?????????# #??# ## #??# ###+###?? | +----------------------------------------------------+ Best States ------------- Heat Dissipation 91 Energy Generation 55 Energy Capacity 1300 Matter Stores 300 Matter Capacity 300 Sight Range 20 Robot Scan Range 18 Terrain Scan Density 10 ECM Strength 1 Jamming Range 22 Power Amplification 30 Additional Mass Support 9 Armor Coverage 1350 Resistance: KI 20 Propulsion Shielding 66 Utility Shielding 90 Melee Speed Boost 50 Phase Shifting 15 Evasion (%) 72 Targeting Accuracy 16 Melee Accuracy 24 Core Analysis 8 Recoil Reduction 4 Matter Filtering 50 Salvage Targeting 2 Offensive Hacking 66 Defensive Hacking 20 Authchip Count 4 Trap Extractor Capacity 4 Item Schematics ----------------- Hcp. Storage Unit | -10/Materials | Hacked Cmb. Airjet | -8/Materials | Scanalyzed Hvy. Assault Cannon | -8/Materials | Hacked Hvy. Particle Cannon | -8/Materials | Scanalyzed Hardlight Generator | -8/Materials | Scanalyzed Powered Armor | -7/Factory | Scanalyzed Weapon Mount | -7/Factory | Hacked Imp. System Shield | -7/Factory | Hacked Combat Drone Bay | -7/Data Miner | Free Lgt. Regenerative Plating | -7/Data Miner | Free Cld. Aerolev Unit | -7/Data Miner | Free Gravity Neutralizer | -7/Data Miner | Free Imp. Heavy Laser | -7/Data Miner | Free Gyrokinetic Inverter | -7/Data Miner | Free Imp. Transmission Jammer | -7/Data Miner | Free Imp. Arc Projector | -7/Data Miner | Free Adv. Heat Sink | -7/Data Miner | Free Antigrav System | -7/Data Miner | Free Hardcell Cannon | -7/Data Miner | Free Microactuators | -6/Factory | Scanalyzed Core Analyzer | -6/Extension | Hacked Armor Integrity Analyzer | -6/Extension | Hacked Centrium Heavy Treads | -5/Factory | Scanalyzed Lrn. Missile Launcher | -5/Factory | Scanalyzed Nanoactuators | -5/Factory | Hacked Mni. Smartbomb Launcher | -5/Factory | Hacked Exp. Utility Shielding | -5/Factory | Hacked Tri-rail Accelerator | -5/Factory | Hacked Antimissile System | -5/Factory | Hacked Adv. Actuator Array | -5/Factory | Hacked Lrn. Proton Cannon | -5/Factory | Hacked Assault Drone Bay | -5/Zhirov | Free Exp. Heat Sink | -5/Zhirov | Free Exp. Optical Array | -5/Zhirov | Free Imp. Arc Thrower | -5/Zhirov | Free Imp. Utility Shielding | -4/Factory | Scanalyzed Cmb. Linear Gravjet | -4/Factory | Hacked Adv. Powered Armor | -4/Factory | Hacked Adv. EM Disruption Field | -4/Factory | Hacked Plasma Lance | -4/Factory | Hacked Femtoactuators | -3/Research | Hacked Exp. Melee Analysis Suite | -3/Research | Hacked Robot Schematics ------------------ M-13 Machinist | -10/Materials | Hacked B-48 Gladiator | -7/Data Miner | Free O-24 Administrator | -7/Data Miner | Free G-50 Soldier | -7/Data Miner | Free M-22 Extractor | -7/Data Miner | Free H-66 Slayer | -7/Data Miner | Free L-41 Fighter | -7/Data Miner | Free Fabricated ------------ Hvy. Assault Cannon | x1 | -7/Factory Combat Drone Bay | x1 | -6/Factory | Authchip Mni. Smartbomb Launcher | x1 | -5/Factory | Authchip Tri-rail Accelerator | x1 | -5/Factory | Authchip Cmb. Linear Gravjet | x2 | -4/Factory | Authchip Cmb. Linear Gravjet | x2 | -4/Factory | Authchip Nanoactuators | x2 | -4/Factory | Authchip Adv. Powered Armor | x1 | -4/Factory | Authchip Cmb. Linear Gravjet | x2 | -4/Factory | Authchip Exp. Utility Shielding | x1 | -4/Factory | Authchip Femtoactuators | x1 | -3/Research | Authchip Exp. Utility Shielding | x1 | -3/Research | Authchip Exp. Melee Analysis Suite | x1 | -3/Research Alien Tech Used ----------------- Integrated Dissipator Achievements -------------- Watch This! Challenges ------------ None Game ------ Seed MolecularThermicTube Manual? 0 Play Time 08:58:11 Cumulative 92.3 hours Start 2024.05.01 @ 19:45:26 End 2024.05.07 @ 00:41:23 Sessions 29 Manual Loads 0 Difficulty Rogue Special Mode None Game No. 19 Rogue 18 Adventurer 1 Explorer 0 Win Type 1 Total 8 Types 2/2/3/0/0/0/1/0/0 Lore% 41 Gallery% 62 Achievement% 57 Wizard Run 0 Options --------- Layout 0 ASCII 0 Keyboard 0 Movement Mouse Keybinds 0 Fullscreen 1 Font 18/Terminus Map View 76x50 Zoom Use 0% Tactical HUD 1 Map Filters NONE Filters NONE Steam 0 RUN: 11a57026-b740-4fb8-b196-373731280ae9